bitfinex-derivatives/quotes_BTCF0:USTF0_20241130
["timestamp","ask_amount","ask_price","bid_price","bid_amount"]
[1732937071865,0.19360582,96576.0,96575.0,0.054755]
[1732937072370,0.06508582,96576.0,96575.0,0.054755]
[1732937072567,0.19360582,96576.0,96575.0,0.054755]
[1732937073464,0.06508582,96576.0,96575.0,0.054755]
[1732937073666,0.19360582,96576.0,96575.0,0.054755]
[1732937074073,0.14185182,96576.0,96575.0,0.054755]
[1732937074263,0.19360582,96576.0,96575.0,0.054755]
[1732937077173,0.14185182,96576.0,96575.0,0.054755]
[1732937077362,0.01333182,96576.0,96575.0,0.054755]
[1732937077872,0.01333182,96576.0,96575.0,0.05799244]
[1732937079064,0.01333182,96576.0,96575.0,0.054755]
[1732937082374,0.01333182,96576.0,96575.0,0.05799244]
[1732937082975,0.01333182,96576.0,96575.0,0.054755]
[1732937089975,0.01333182,96576.0,96575.0,0.06317235]
[1732937098184,0.06508582,96576.0,96575.0,0.05799244]
[1732937100293,0.052754,96576.0,96575.0,0.05799244]
[1732937102281,0.001,96576.0,96575.0,0.05799244]
[1732937102481,0.052754,96576.0,96575.0,0.05799244]
[1732937104988,0.052754,96576.0,96575.0,0.06317246]
[1732937111591,0.052754,96576.0,96575.0,0.06317256]
[1732937113091,0.06524301,96576.0,96575.0,0.06317256]
[1732937114886,0.06524301,96576.0,96575.0,0.054755]
[1732937115398,0.06524301,96576.0,96575.0,0.06317254]
[1732937120098,0.06524301,96576.0,96575.0,0.05799251]
[1732937124091,0.14188901,96576.0,96575.0,0.05799251]
[1732937124295,0.14188901,96576.0,96575.0,0.06317238]
[1732937125193,0.14188901,96576.0,96575.0,0.06317209]
[1732937125598,0.01348901,96576.0,96575.0,0.06317209]
[1732937127109,0.01348901,96576.0,96575.0,0.06964677]
[1732937131503,0.01348901,96576.0,96575.0,0.06317209]
[1732937132108,0.01348901,96576.0,96575.0,0.06317215]
[1732937133012,0.06524301,96576.0,96575.0,0.06317215]
[1732937134204,0.06524301,96576.0,96575.0,0.06964687]
[1732937135007,0.06524301,96576.0,96575.0,0.06964685]
[1732937135208,0.06524301,96576.0,96575.0,0.05799236]
[1732937135914,0.06524301,96576.0,96575.0,0.06317213]
[1732937142205,0.06524301,96576.0,96575.0,0.06317216]
[1732937142411,0.06524301,96576.0,96575.0,0.0696469]
[1732937145920,0.06524301,96576.0,96575.0,0.06964699]
[1732937149322,0.06524301,96576.0,96575.0,0.06964708]
[1732937150415,0.06524301,96576.0,96575.0,0.06317226]
[1732937156325,0.06524301,96576.0,96575.0,0.054755]
[1732937156611,0.06524301,96576.0,96575.0,0.06317226]
[1732937157417,0.06524301,96576.0,96575.0,0.06964708]
[1732937158114,0.06524301,96576.0,96575.0,0.06664708]
[1732937158417,0.06524301,96576.0,96575.0,0.07064708]
[1732937162316,0.06524301,96576.0,96575.0,0.07064709]
[1732937162927,0.01348901,96576.0,96575.0,0.07064709]
[1732937164414,0.001,96576.0,96575.0,0.07064709]
[1732937165820,0.001,96576.0,96575.0,0.07064591]
[1732937166021,0.05401997,96603.0,96599.0,0.051742]
[1732937166022,0.05399563,96600.0,96599.0,0.051742]
[1732937166324,0.180061,96600.0,96599.0,0.42743186]
[1732937166524,0.051741,96600.0,96599.0,0.4209586]
[1732937166723,0.12832,96601.0,96600.0,0.051741]
[1732937166919,0.12832,96601.0,96600.0,0.0601576]
[1732937167112,0.05174,96602.0,96600.0,0.0084166]
[1732937167313,0.05174,96602.0,96601.0,0.0601576]
[1732937167513,0.18006,96602.0,96601.0,0.0601576]
[1732937168522,0.18306,96602.0,96601.0,0.0601576]
[1732937169327,0.19006,96602.0,96601.0,0.0601576]
[1732937171027,0.18998,96602.0,96601.0,0.0601576]
[1732937171226,0.18998,96602.0,96601.0,0.05497815]
[1732937172517,0.18998,96602.0,96601.0,0.051741]
[1732937173732,0.01,96602.0,96601.0,0.051741]
[1732937175818,0.01,96602.0,96601.0,0.05497721]
[1732937176018,0.01,96602.0,96601.0,0.05497706]
[1732937176523,0.01,96602.0,96601.0,0.051741]
[1732937178738,0.01,96602.0,96601.0,0.05497708]
[1732937178926,0.01,96602.0,96601.0,0.77657708]
[1732937180434,0.003,96602.0,96601.0,0.77657708]
[1732937180734,0.004,96602.0,96601.0,0.77657708]
[1732937189958,0.004,96602.0,96601.0,0.773341]
[1732937190152,0.004,96602.0,96601.0,0.77657708]
[1732937190649,0.004,96602.0,96601.0,0.773341]
[1732937191044,0.004,96602.0,96601.0,0.77657708]
[1732937192352,0.1322,96602.0,96601.0,0.00323608]
[1732937192647,0.1322,96602.0,96585.0,0.3608]
[1732937192648,0.051749,96586.0,96585.0,0.3608]
[1732937192852,0.179949,96586.0,96585.0,0.3608]
[1732937193145,0.051751,96582.0,96581.0,0.00155295]
[1732937193350,0.051751,96581.0,96580.0,0.051752]
[1732937194549,0.051751,96581.0,96580.0,0.056752]
[1732937194753,0.051751,96581.0,96569.0,0.3608]
[1732937194754,0.712551,96581.0,96569.0,0.3608]
[1732937194942,0.712551,96581.0,96562.0,0.00048]
[1732937194943,0.051761,96564.0,96562.0,0.00048]
[1732937195141,0.489,96563.0,96562.0,0.00048]
[1732937197441,0.489,96563.0,96562.0,0.00848]
[1732937197442,0.49,96563.0,96562.0,0.00848]
[1732937198741,0.5023849,96563.0,96562.0,0.00848]
[1732937198945,0.5023449,96563.0,96562.0,0.00848]
[1732937199750,0.3741849,96563.0,96562.0,0.00848]
[1732937199947,0.5023449,96563.0,96562.0,0.00848]
[1732937200252,0.3741849,96563.0,96562.0,0.00848]
[1732937200457,0.5023449,96563.0,96562.0,0.00848]
[1732937201046,0.3741849,96563.0,96562.0,0.00848]
[1732937201253,0.5023449,96563.0,96562.0,0.00848]
[1732937202756,0.5023449,96563.0,96562.0,0.008]
[1732937206958,0.5023849,96563.0,96562.0,0.008]
[1732937208856,0.3741849,96563.0,96562.0,0.008]
[1732937209056,0.5023849,96563.0,96562.0,0.008]
[1732937210855,0.5541459,96563.0,96562.0,0.008]
[1732937212057,0.8541459,96563.0,96530.0,0.3608]
[1732937212358,0.051782,96524.0,96523.0,0.00059]
[1732937212558,0.179982,96524.0,96523.0,0.00059]
[1732937213064,0.18007123,96524.0,96523.0,0.00059]
[1732937213760,0.18107123,96524.0,96523.0,0.00459]
[1732937214355,0.18107123,96524.0,96511.0,0.35151]
[1732937214356,0.42928923,96524.0,96511.0,0.35151]
[1732937214562,0.051794,96501.0,96479.0,0.3608]
[1732937214861,0.412594,96501.0,96488.0,0.051801]
[1732937215064,0.412594,96501.0,96470.0,0.00052]
[1732937215065,0.051795,96499.0,96470.0,0.00052]
[1732937215271,0.412606,96479.0,96471.0,0.00324051]
[1732937215453,0.051807,96477.0,96470.0,0.00052]
[1732937215657,0.051807,96477.0,96475.0,0.051808]
[1732937215854,0.3608,96487.0,96480.0,0.051805]
[1732937216164,0.3608,96487.0,96474.0,0.1282]
[1732937216165,0.051803,96485.0,96482.0,0.051804]
[1732937216562,0.001,96477.0,96476.0,0.1282]
[1732937216760,0.051803,96485.0,96481.0,0.051805]
[1732937217366,0.051803,96485.0,96476.0,0.1282]
[1732937217566,0.051803,96485.0,96477.0,0.00324039]
[1732937217763,0.051803,96485.0,96478.0,0.00324039]
[1732937217970,0.051803,96485.0,96479.0,0.008425]
[1732937218153,0.051803,96485.0,96480.0,0.00842503]
[1732937218360,0.051803,96485.0,96477.0,0.12824]
[1732937218361,0.3618,96487.0,96481.0,0.00842503]
[1732937218668,0.3618,96487.0,96482.0,0.00842503]
[1732937218866,0.3618,96487.0,96477.0,0.12824]
[1732937218867,0.051803,96485.0,96483.0,0.00842503]
[1732937219064,0.051803,96485.0,96484.0,0.00842503]
[1732937219564,0.051803,96485.0,96484.0,0.00842502]
[1732937219759,0.052803,96485.0,96484.0,0.00842502]
[1732937220374,0.051803,96485.0,96484.0,0.00942502]
[1732937220566,0.001,96485.0,96484.0,0.00942502]
[1732937220758,0.051796,96499.0,96484.0,0.56242896]
[1732937221065,0.0207314,96501.0,96494.0,0.412598]
[1732937221367,0.0207314,96501.0,96495.0,0.0149056]
[1732937221671,0.0207314,96501.0,96496.0,0.0149056]
[1732937221873,0.051796,96498.0,96497.0,0.0149056]
[1732937222368,0.051796,96498.0,96497.0,0.01490471]
[1732937222866,0.051796,96498.0,96497.0,0.00842502]
[1732937223465,0.052796,96498.0,96497.0,0.00842502]
[1732937224167,0.052796,96498.0,96497.0,0.0149048]
[1732937224970,0.052796,96498.0,96497.0,0.00842502]
[1732937225661,0.053796,96498.0,96497.0,0.00842502]
[1732937225863,0.052796,96498.0,96497.0,0.00842502]
[1732937226469,0.053796,96498.0,96497.0,0.00842502]
[1732937227562,0.053796,96498.0,96497.0,0.25591269]
[1732937228270,0.053796,96498.0,96497.0,0.00842502]
[1732937229273,0.053796,96498.0,96497.0,0.01490472]
[1732937229769,0.053796,96498.0,96497.0,0.00842502]
[1732937230271,0.052796,96498.0,96497.0,0.06022102]
[1732937230463,0.051796,96498.0,96497.0,0.06022102]
[1732937231273,0.051796,96498.0,96497.0,0.24529661]
[1732937232172,0.052796,96498.0,96497.0,0.06022102]
[1732937232371,0.052796,96498.0,96497.0,0.06021961]
[1732937232870,0.053796,96498.0,96497.0,0.06669931]
[1732937236069,0.002,96498.0,96497.0,0.06669931]
[1732937237271,0.001,96498.0,96497.0,0.06669931]
[1732937238276,0.051796,96499.0,96498.0,0.051796]
[1732937238578,0.0207314,96501.0,96500.0,0.051795]
[1732937238772,0.0207314,96501.0,96500.0,0.06669831]
[1732937239485,0.0207314,96501.0,96500.0,0.52578149]
[1732937239680,0.0725254,96501.0,96500.0,0.52578149]
[1732937239973,0.0735254,96501.0,96500.0,0.31768407]
[1732937240178,0.0745254,96501.0,96500.0,0.00842358]
[1732937241182,0.051794,96501.0,96500.0,0.88608163]
[1732937241472,0.051794,96501.0,96500.0,0.89126545]
[1732937242078,0.052794,96501.0,96500.0,0.46809448]
[1732937242278,0.07352821,96501.0,96500.0,0.46809448]
[1732937242586,0.07352821,96501.0,96500.0,1.00196401]
[1732937242874,0.07352821,96501.0,96500.0,0.83516427]
[1732937243078,0.07352821,96501.0,96500.0,0.82349613]
[1732937243275,0.07352821,96501.0,96500.0,0.45124264]
[1732937245180,0.07352821,96501.0,96500.0,0.82052137]
[1732937245480,0.051797,96496.0,96495.0,0.051797]
[1732937245680,0.051797,96496.0,96495.0,0.05503699]
[1732937246182,0.051797,96496.0,96495.0,0.49992508]
[1732937246378,0.051797,96496.0,96495.0,0.50316506]
[1732937246577,0.051797,96496.0,96495.0,0.50416506]
[1732937249266,0.051797,96496.0,96495.0,0.50453267]
[1732937249676,0.051797,96496.0,96495.0,0.50129269]
[1732937249881,0.051797,96496.0,96495.0,0.50453267]
[1732937251173,0.02073421,96501.0,96500.0,0.051795]
[1732937252285,0.02173421,96501.0,96500.0,0.30046935]
[1732937252587,0.07352821,96501.0,96500.0,0.30046935]
[1732937252881,0.07352821,96501.0,96500.0,0.05503495]
[1732937253972,0.07352821,96501.0,96500.0,0.051795]
[1732937254169,0.051797,96496.0,96494.0,0.051798]
[1732937254373,0.051797,96496.0,96495.0,0.00323995]
[1732937255088,0.051797,96496.0,96476.0,0.082308]
[1732937255089,0.051803,96484.0,96472.0,0.18650443]
[1732937255382,0.051809,96473.0,96472.0,0.05181]
[1732937257184,0.001,96473.0,96472.0,0.05381]
[1732937258685,0.002,96473.0,96472.0,0.05381]
[1732937259877,0.002,96473.0,96472.0,0.18205]
[1732937261484,0.002,96473.0,96472.0,0.05381]
[1732937262579,0.002,96473.0,96472.0,0.002]
[1732937266185,0.002,96473.0,96472.0,0.1302]
[1732937269289,0.002,96473.0,96472.0,0.491]
[1732937272485,0.002,96473.0,96472.0,0.54281]
[1732937278086,0.00155509,96500.0,96472.0,0.491]
[1732937278286,0.00155509,96500.0,96495.0,0.051797]
[1732937278592,0.051797,96496.0,96495.0,0.051797]
[1732937281881,0.42669686,96499.0,96498.0,0.051796]
[1732937282097,0.37325554,96499.0,96498.0,0.051796]
[1732937283288,0.3608,96499.0,96498.0,0.051796]
[1732937283691,0.3618,96499.0,96498.0,0.051796]
[1732937284195,0.3628,96499.0,96498.0,0.051796]
[1732937284697,0.3618,96499.0,96498.0,0.051796]
[1732937286793,0.3608,96499.0,96498.0,0.051796]
[1732937288292,0.3608,96499.0,96498.0,0.179996]
[1732937290000,0.3608,96499.0,96498.0,0.051796]
[1732937293004,0.3618,96499.0,96498.0,0.051796]
[1732937293689,0.3608,96499.0,96498.0,0.051796]
[1732937300600,0.00155509,96500.0,96499.0,0.051795]
[1732937302410,0.01245996,96501.0,96500.0,0.051795]
[1732937302615,0.3608,96509.0,96500.0,0.051795]
[1732937302808,0.3608,96509.0,96508.0,0.051791]
[1732937303708,0.3608,96509.0,96500.0,0.051795]
[1732937304007,0.3618,96509.0,96508.0,0.051791]
[1732937304405,0.3638,96509.0,96508.0,0.051791]
[1732937305899,0.3678,96509.0,96508.0,0.051791]
[1732937306104,0.38031668,96509.0,96508.0,0.051791]
[1732937306508,0.37931668,96509.0,96508.0,0.051791]
[1732937306704,0.43110668,96509.0,96508.0,0.051791]
[1732937321615,0.52650365,96509.0,96508.0,0.051791]
[1732937323818,0.43110668,96509.0,96508.0,0.051791]
[1732937324724,0.52650365,96509.0,96508.0,0.051791]
[1732937325219,0.43110668,96509.0,96508.0,0.051791]
[1732937328621,0.37931668,96509.0,96508.0,0.051791]
[1732937333234,0.01851668,96509.0,96508.0,0.051791]
[1732937336940,0.07030668,96509.0,96508.0,0.051791]
[1732937340541,0.01851668,96509.0,96508.0,0.051791]
[1732937348237,0.01851668,96509.0,96508.0,0.412591]
[1732937348447,0.01851668,96509.0,96508.0,0.41583061]
[1732937348742,0.05178,96529.0,96521.0,0.051784]
[1732937348946,0.051781,96526.0,96521.0,0.051784]
[1732937349134,0.0301,96538.0,96521.0,0.051784]
[1732937349330,0.09537985,96527.0,96523.0,0.051782]
[1732937349639,0.01222422,96524.0,96523.0,0.051782]
[1732937349842,8.923e-05,96524.0,96523.0,0.051782]
[1732937350035,8.923e-05,96524.0,96523.0,0.05502086]
[1732937351041,0.00408923,96524.0,96523.0,0.05502086]
[1732937351246,0.01108923,96524.0,96523.0,0.05502086]
[1732937353142,0.01108923,96524.0,96523.0,0.051782]
[1732937359050,0.01108923,96524.0,96523.0,0.412582]
[1732937360259,0.01108923,96524.0,96523.0,0.41582078]
[1732937360842,0.01108923,96524.0,96523.0,0.540662]
[1732937361153,0.01108923,96524.0,96523.0,0.54390078]
[1732937364553,0.01108923,96524.0,96523.0,0.41582078]
[1732937364753,0.01108923,96524.0,96523.0,0.54390078]
[1732937366249,0.00708923,96524.0,96523.0,0.54390078]
[1732937366554,0.00908923,96524.0,96523.0,0.54390078]
[1732937367056,0.00408923,96524.0,96523.0,0.54490078]
[1732937367554,8.923e-05,96524.0,96523.0,0.54590078]
[1732937367948,8.923e-05,96524.0,96523.0,0.54590079]
[1732937368253,8.923e-05,96524.0,96523.0,0.542662]
[1732937375150,8.923e-05,96524.0,96523.0,0.55108285]
[1732937377670,8.923e-05,96524.0,96523.0,0.54784406]
[1732937378560,8.923e-05,96524.0,96523.0,0.55108285]
[1732937379154,8.923e-05,96524.0,96523.0,0.55756043]
[1732937380259,8.923e-05,96524.0,96523.0,0.542662]
[1732937380460,8.923e-05,96524.0,96523.0,0.55756043]
[1732937381570,8.923e-05,96524.0,96523.0,0.56056043]
[1732937381861,8.923e-05,96524.0,96523.0,0.56256043]
[1732937382463,8.923e-05,96524.0,96523.0,0.54890079]
[1732937383360,8.923e-05,96524.0,96523.0,0.54990079]
[1732937383567,8.923e-05,96524.0,96523.0,0.54590079]
[1732937383757,8.923e-05,96524.0,96523.0,0.54790079]
[1732937383958,8.923e-05,96524.0,96523.0,0.54790078]
[1732937384153,8.923e-05,96524.0,96523.0,0.54590078]
[1732937384469,8.923e-05,96524.0,96523.0,0.54890078]
[1732937384968,8.923e-05,96524.0,96523.0,0.54790078]
[1732937386868,8.923e-05,96524.0,96523.0,0.54890078]
[1732937387574,8.923e-05,96524.0,96523.0,0.544662]
[1732937387766,8.923e-05,96524.0,96523.0,0.54790069]
[1732937390574,8.923e-05,96524.0,96523.0,0.55955999]
[1732937391174,8.923e-05,96524.0,96523.0,0.544662]
[1732937391499,8.923e-05,96524.0,96523.0,0.55955999]
[1732937399776,8.923e-05,96524.0,96523.0,0.5530826]
[1732937400783,8.923e-05,96524.0,96523.0,0.55955999]
[1732937400966,8.923e-05,96524.0,96523.0,0.55951999]
[1732937402168,8.923e-05,96524.0,96523.0,0.5530426]
[1732937402966,0.41267123,96524.0,96523.0,0.0124206]
[1732937403170,0.41267123,96524.0,96511.0,0.051788]
[1732937403171,0.05179,96512.0,96511.0,0.051788]
[1732937403773,0.17935297,96523.0,96506.0,0.3608]
[1732937403774,0.0322,96523.0,96506.0,0.3608]
[1732937403982,0.051786,96519.0,96518.0,0.051785]
[1732937405181,0.051786,96519.0,96518.0,0.056785]
[1732937405476,0.051786,96519.0,96507.0,0.051791]
[1732937405679,0.0322,96523.0,96506.0,0.3608]
[1732937405680,0.05179,96512.0,96511.0,0.051788]
[1732937406784,0.05279,96512.0,96511.0,0.055788]
[1732937407880,0.05379,96512.0,96511.0,0.057788]
[1732937411072,0.06604776,96512.0,96511.0,0.057788]
[1732937421099,0.002,96512.0,96511.0,0.057788]
[1732937421894,0.002,96512.0,96511.0,0.06102746]
[1732937424490,0.053788,96512.0,96511.0,0.06102746]
[1732937425894,0.002,96512.0,96511.0,0.057788]
[1732937426896,0.002,96512.0,96511.0,0.06102746]
[1732937427793,0.002,96512.0,96511.0,0.057788]
[1732937433199,0.053788,96512.0,96511.0,0.057788]
[1732937434499,0.053788,96512.0,96511.0,0.006]
[1732937434897,0.053788,96512.0,96511.0,0.0092395]
[1732937435103,0.053788,96512.0,96511.0,0.0610285]
[1732937438811,0.053788,96512.0,96511.0,0.06102849]
[1732937441210,0.053788,96512.0,96511.0,0.06297218]
[1732937441517,0.002,96512.0,96511.0,0.06621164]
[1732937443214,0.002,96512.0,96511.0,0.06102849]
[1732937445312,0.002,96512.0,96511.0,0.06102846]
[1732937450111,0.002,96512.0,96511.0,0.06621121]
[1732937450311,0.002,96512.0,96511.0,0.07268962]
[1732937451107,0.09537531,96530.0,96512.0,0.051788]
[1732937451309,0.09537531,96530.0,96523.0,0.051782]
[1732937451508,0.09537531,96530.0,96523.0,0.06020421]
[1732937451713,0.12792,96537.0,96523.0,0.06020421]
[1732937451921,0.09537402,96530.0,96523.0,0.06020421]
[1732937452125,0.0316,96539.0,96523.0,0.051782]
[1732937452325,0.0120467,96528.0,96523.0,0.06020364]
[1732937453207,0.0120467,96528.0,96523.0,0.06220364]
[1732937453620,0.0120467,96528.0,96523.0,0.19012364]
[1732937454513,0.0120467,96528.0,96523.0,0.19112364]
[1732937455620,0.0120467,96528.0,96523.0,0.19112345]
[1732937456118,0.05187123,96524.0,96523.0,0.01142145]
[1732937456322,0.05187123,96524.0,96523.0,0.00623902]
[1732937456711,0.05187123,96524.0,96523.0,0.00623937]
[1732937457411,0.05187123,96524.0,96523.0,0.003]
[1732937463823,0.41267123,96524.0,96523.0,0.003]
[1732937464629,0.50806037,96524.0,96523.0,0.003]
[1732937464942,0.54076037,96524.0,96523.0,0.003]
[1732937465517,0.051793,96504.0,96503.0,0.00155425]
[1732937465822,0.051793,96504.0,96503.0,0.00842345]
[1732937466731,0.051793,96504.0,96503.0,0.06021645]
[1732937467023,0.002,96504.0,96503.0,0.06421645]
[1732937471413,0.002,96504.0,96503.0,0.07069577]
[1732937472013,0.002,96504.0,96503.0,0.07069544]
[1732937474623,0.002,96504.0,96503.0,0.25719241]
[1732937475533,0.002,96504.0,96503.0,0.25719206]
[1732937476032,0.002,96504.0,96503.0,0.07069509]
[1732937476532,0.002,96504.0,96503.0,0.055793]
[1732937477536,0.002,96504.0,96503.0,0.07069476]
[1732937478031,0.002,96504.0,96503.0,0.25719173]
[1732937478927,0.002,96504.0,96503.0,0.07069476]
[1732937479923,0.3816237,96524.0,96523.0,0.051782]
[1732937480126,0.3816237,96524.0,96523.0,0.06020473]
[1732937480425,0.3940156,96524.0,96523.0,0.05502151]
[1732937480625,0.37328113,96524.0,96523.0,0.05502151]
[1732937480832,0.01248113,96524.0,96523.0,0.05502151]
[1732937481128,8.923e-05,96524.0,96523.0,0.05602151]
[1732937481335,8.923e-05,96524.0,96523.0,0.06120399]
[1732937482633,8.923e-05,96524.0,96523.0,0.06220399]
[1732937483922,0.01208604,96529.0,96528.0,0.05178]
[1732937484133,0.00155431,96532.0,96531.0,0.051778]
[1732937484331,0.00155431,96532.0,96531.0,0.05501751]
[1732937484731,0.02073447,96540.0,96539.0,0.051774]
[1732937485033,0.02082402,96540.0,96539.0,0.051774]
[1732937486333,0.02582402,96540.0,96539.0,0.051774]
[1732937486544,0.00508955,96540.0,96539.0,0.051774]
[1732937486833,0.00508955,96540.0,96539.0,0.05501264]
[1732937487036,0.00808955,96540.0,96539.0,0.05501264]
[1732937487631,0.00808955,96540.0,96539.0,0.06019417]
[1732937489637,0.00808955,96540.0,96539.0,0.051774]
[1732937489938,0.00808955,96540.0,96539.0,0.06019375]
[1732937490136,0.00808955,96540.0,96539.0,0.05501236]
[1732937492640,0.00808955,96540.0,96539.0,0.06019377]
[1732937493138,0.00808955,96540.0,96539.0,0.05695541]
[1732937493339,0.00808955,96540.0,96539.0,0.06019377]
[1732937494539,0.00808955,96540.0,96539.0,0.05501237]
[1732937495645,0.00808955,96540.0,96539.0,0.051774]
[1732937496143,0.00808955,96540.0,96539.0,0.05501237]
[1732937497532,0.00808955,96540.0,96539.0,0.051774]
[1732937498944,0.00808955,96540.0,96539.0,0.05189134]
[1732937499133,0.00155386,96560.0,96551.0,0.051767]
[1732937499843,0.00155386,96560.0,96559.0,0.051763]
[1732937500938,0.00255386,96560.0,96559.0,0.051763]
[1732937502643,0.00355386,96560.0,96559.0,0.051763]
[1732937502839,0.01498759,96560.0,96559.0,0.051763]
[1732937503039,0.00255386,96560.0,96559.0,0.051763]
[1732937503239,0.00355386,96560.0,96559.0,0.05500092]
[1732937503636,0.00455386,96560.0,96559.0,0.05500092]
[1732937504035,0.00455386,96560.0,96559.0,0.051763]
[1732937504240,0.00455386,96560.0,96559.0,0.05500089]
[1732937505550,0.00155386,96560.0,96559.0,0.05500089]
[1732937505745,0.00355386,96560.0,96559.0,0.05500089]
[1732937506348,0.00255386,96560.0,96559.0,0.05500089]
[1732937506548,0.00355386,96560.0,96559.0,0.05500089]
[1732937506753,0.00455386,96560.0,96559.0,0.05500089]
[1732937507255,0.01576782,96560.0,96559.0,0.05500089]
[1732937507456,0.00455386,96560.0,96559.0,0.05500089]
[1732937507953,0.05631686,96560.0,96559.0,0.05500089]
[1732937508746,0.06875059,96560.0,96559.0,0.05500089]
[1732937508945,0.06775059,96560.0,96559.0,0.05500089]
[1732937509548,0.06675059,96560.0,96559.0,0.05500089]
[1732937509850,0.06975059,96560.0,96559.0,0.05500089]
[1732937510056,0.07075059,96560.0,96559.0,0.05500089]
[1732937510456,0.00655386,96560.0,96559.0,0.05500088]
[1732937510652,0.005,96560.0,96559.0,0.06018125]
[1732937511367,0.07247504,96578.0,96572.0,0.051756]
[1732937511876,0.37299063,96573.0,96572.0,0.051756]
[1732937513079,0.3648,96573.0,96572.0,0.051756]
[1732937513587,0.3728,96573.0,96572.0,0.052756]
[1732937515162,0.3688,96573.0,96572.0,0.052756]
[1732937515371,0.3688,96573.0,96572.0,0.05599351]
[1732937515579,0.3608,96573.0,96572.0,0.05499351]
[1732937517376,0.01213517,96574.0,96572.0,0.00323751]
[1732937517591,0.3608,96578.0,96567.0,0.19194]
[1732937517776,0.3608,96578.0,96577.0,0.051754]
[1732937518486,0.3608,96578.0,96577.0,0.06017145]
[1732937518984,0.37292289,96578.0,96577.0,0.06017145]
[1732937519176,0.01512289,96578.0,96577.0,0.06664601]
[1732937519676,0.001,96578.0,96577.0,0.06664601]
[1732937519867,0.002,96578.0,96577.0,0.06664601]
[1732937520062,0.003,96578.0,96577.0,0.06664601]
[1732937521160,0.01213351,96594.0,96577.0,0.01489201]
[1732937521358,0.01213351,96594.0,96582.0,0.05415031]
[1732937521558,0.01213351,96594.0,96583.0,0.10849201]
[1732937521761,0.01213351,96594.0,96584.0,0.01489201]
[1732937521965,0.01213351,96594.0,96585.0,0.01489201]
[1732937522164,0.01213351,96594.0,96586.0,0.01489201]
[1732937522367,0.01213351,96594.0,96583.0,0.45492]
[1732937522368,0.1278,96596.0,96587.0,0.01489201]
[1732937522666,0.00255337,96592.0,96591.0,0.051746]
[1732937522852,0.00255337,96592.0,96591.0,0.06663801]
[1732937523060,0.00355337,96592.0,96591.0,0.06663801]
[1732937523362,0.003,96592.0,96591.0,0.06663801]
[1732937523659,0.001,96592.0,96591.0,0.06663801]
[1732937523963,0.002,96592.0,96591.0,0.06663801]
[1732937525268,0.004,96592.0,96591.0,0.06663801]
[1732937525456,0.004,96592.0,96591.0,0.06016345]
[1732937525457,0.003,96592.0,96591.0,0.06016345]
[1732937525656,0.004,96592.0,96591.0,0.06016345]
[1732937526267,0.003,96592.0,96591.0,0.06016345]
[1732937526468,0.004,96592.0,96591.0,0.06016345]
[1732937527370,0.055746,96592.0,96591.0,0.06016345]
[1732937528371,0.056746,96592.0,96591.0,0.06016345]
[1732937528571,0.057746,96592.0,96591.0,0.06016345]
[1732937529269,0.055746,96592.0,96591.0,0.06016345]
[1732937529466,0.056746,96592.0,96591.0,0.051746]
[1732937530272,0.055746,96592.0,96591.0,0.051746]
[1732937530470,0.052746,96592.0,96591.0,0.051746]
[1732937530671,0.054746,96592.0,96591.0,0.051746]
[1732937532464,0.053746,96592.0,96591.0,0.051746]
[1732937532668,0.055746,96592.0,96591.0,0.051746]
[1732937533160,0.053746,96592.0,96591.0,0.051746]
[1732937533372,0.059746,96592.0,96591.0,0.0601619]
[1732937533573,0.059746,96592.0,96591.0,0.0084159]
[1732937533774,0.054746,96592.0,96591.0,0.0084159]
[1732937533971,0.054746,96592.0,96591.0,0.00323688]
[1732937533972,0.059746,96592.0,96591.0,0.00323688]
[1732937534469,0.051757,96570.0,96569.0,0.18566414]
[1732937534673,0.051757,96570.0,96569.0,0.01165399]
[1732937534674,0.412557,96570.0,96569.0,0.01165399]
[1732937534877,0.412557,96570.0,96569.0,0.00517955]
[1732937535264,0.412557,96570.0,96555.0,0.0663]
[1732937535265,0.051758,96568.0,96560.0,0.051763]
[1732937536475,0.051762,96561.0,96560.0,0.051763]
[1732937536771,0.051762,96561.0,96560.0,0.05694362]
[1732937537172,0.051762,96561.0,96560.0,0.00518062]
[1732937537674,0.051762,96561.0,96560.0,0.05694362]
[1732937538063,0.051762,96561.0,96560.0,0.051763]
[1732937538375,0.052762,96561.0,96560.0,0.059763]
[1732937538765,0.001,96561.0,96560.0,0.064763]
[1732937539775,0.001,96561.0,96560.0,0.06994357]
[1732937540275,0.001,96561.0,96560.0,0.064763]
[1732937540465,0.001,96561.0,96560.0,0.06994355]
[1732937541174,0.001,96561.0,96560.0,0.064763]
[1732937546680,0.001,96561.0,96560.0,0.06800073]
[1732937547681,0.001,96561.0,96560.0,0.19580073]
[1732937551572,0.001,96561.0,96560.0,0.192563]
[1732937555790,0.001,96561.0,96560.0,0.19580073]
[1732937559682,0.001,96561.0,96560.0,0.19580072]
[1732937561184,0.001,96561.0,96560.0,0.20098108]
[1732937562088,0.001,96561.0,96560.0,0.38664522]
[1732937563083,0.001,96561.0,96560.0,0.20098108]
[1732937563285,0.001,96561.0,96560.0,0.20098109]
[1732937564287,0.001,96561.0,96560.0,0.44853328]
[1732937565191,0.001,96561.0,96560.0,0.44853327]
[1732937565588,0.001,96561.0,96560.0,0.44335291]
[1732937566097,0.001,96561.0,96560.0,0.19580072]
[1732937566294,0.001,96561.0,96560.0,0.20098108]
[1732937567899,0.001,96561.0,96560.0,0.20098104]
[1732937569189,0.001,96561.0,96560.0,0.20745612]
[1732937569385,0.001,96561.0,96560.0,0.68080805]
[1732937569996,0.001,96561.0,96560.0,0.68080283]
[1732937570799,0.001,96561.0,96560.0,0.68080282]
[1732937571098,0.001,96561.0,96560.0,0.9914398]
[1732937571298,0.001,96561.0,96560.0,0.97978439]
[1732937572702,0.001,96561.0,96560.0,0.97654668]
[1732937572891,0.001,96561.0,96560.0,0.97978416]
[1732937574104,0.001,96561.0,96560.0,0.50643746]
[1732937576197,0.001,96561.0,96560.0,0.19580048]
[1732937577499,0.001,96561.0,96560.0,0.19576048]
[1732937577802,0.001,96561.0,96560.0,0.20094046]
[1732937578201,0.001,96561.0,96560.0,0.20741543]
[1732937580101,0.001,96561.0,96560.0,0.56821543]